bitfinex/quotes_SOLUSD_20250305
["timestamp","ask_amount","ask_price","bid_price","bid_amount"]
[1741206665160,0.033,145.71,145.66,533.61170981]
[1741206665772,0.033,145.71,145.66,221.61170981]
[1741206665987,0.033,145.71,145.66,228.47680981]
[1741206666161,0.033,145.71,145.66,221.61170981]
[1741206667041,0.033,145.71,145.66,228.47680981]
[1741206667447,0.033,145.71,145.67,0.6787721]
[1741206667647,0.033,145.71,145.66,228.47680981]
[1741206668383,0.033,145.71,145.67,0.67872126]
[1741206668873,0.033,145.71,145.67,312.67872126]
[1741206669077,0.033,145.71,145.67,312.0]
[1741206669378,0.033,145.71,145.68,6.8643]
[1741206669682,0.033,145.71,145.68,104.91771288]
[1741206669856,0.033,145.71,145.68,241.34402269]
[1741206670181,0.033,145.71,145.68,240.66575693]
[1741206670481,81.033,145.79,145.71,6.2458]
[1741206670482,0.033,145.79,145.71,6.2458]
[1741206670690,0.033,145.79,145.72,30.33505484]
[1741206671396,0.033,145.79,145.73,6.862]
[1741206672160,0.033,145.79,145.74,0.67681635]
[1741206672356,0.033,145.79,145.74,215.92612616]
[1741206672557,0.033,145.79,145.74,222.11060981]
[1741206672756,0.033,145.79,145.74,215.24930981]
[1741206674389,0.033,145.79,145.74,222.11070981]
[1741206674592,0.033,145.79,145.74,215.24930981]
[1741206674886,0.033,145.79,145.74,222.11080981]
[1741206675274,0.033,145.79,145.75,0.67666417]
[1741206675456,0.033,145.79,145.75,215.92597398]
[1741206675664,0.033,145.79,145.75,215.24930981]
[1741206675861,0.033,145.79,145.76,0.676175]
[1741206676364,0.033,145.79,145.75,215.24930981]
[1741206676889,0.033,145.79,145.72,78.823]
[1741206678081,0.033,145.79,145.73,0.67743029]
[1741206678263,0.033,145.79,145.74,6.8615]
[1741206678685,0.033,145.79,145.74,318.8615]
[1741206679067,0.033,145.79,145.75,0.67661988]
[1741206679265,0.033,145.79,145.76,6.8605]
[1741206679667,0.033,145.79,145.77,37.4417951]
[1741206679881,0.033,145.79,145.78,30.61774874]
[1741206680078,0.033,145.86,145.79,0.28432314]
[1741206680276,0.033,145.86,145.81,29.6579951]
[1741206680477,0.033,145.86,145.82,0.67450196]
[1741206680677,0.033,145.86,145.82,215.92381177]
[1741206680879,0.033,145.86,145.82,215.24930981]
[1741206681291,0.033,145.86,145.83,6.8572]
[1741206681589,0.033,145.86,145.84,7.33099947]
[1741206681761,0.033,145.86,145.84,222.58030928]
[1741206681959,0.033,145.86,145.85,2.2043894]
[1741206682194,0.033,145.86,145.85,246.43780491]
[1741206682563,0.033,145.86,145.85,558.43780491]
[1741206682970,0.033,145.86,145.85,528.77980981]
[1741206684196,0.033,145.86,145.85,535.63610981]
[1741206684392,0.033,145.86,145.85,528.77980981]
[1741206684697,0.033,145.86,145.85,216.77980981]
[1741206685084,0.033,145.86,145.85,223.63610981]
[1741206685399,0.033,145.86,145.85,216.77980981]
[1741206685692,0.033,145.86,145.85,223.63610981]
[1741206686400,0.033,145.86,145.85,216.77980981]
[1741206689099,0.033,145.86,145.85,223.63610981]
[1741206689317,0.033,145.86,145.85,253.29410491]
[1741206689895,0.033,145.86,145.85,223.63610981]
[1741206690403,0.033,145.86,145.85,216.77980981]
[1741206690986,0.033,145.86,145.85,215.24930981]
[1741206691684,0.033,145.86,145.85,78.823]
[1741206692405,0.033,145.86,145.85,85.6793]
[1741206692987,0.033,145.86,145.85,115.3372951]
[1741206693698,0.033,145.86,145.85,115.90594138]
[1741206693883,0.0001,145.87,145.86,31.75844138]
[1741206694201,0.033,145.94,145.9,6.601]
[1741206694389,0.033,145.94,145.91,0.67205818]
[1741206695507,0.033,145.94,145.91,312.67205818]
[1741206695676,0.033,145.94,145.91,318.8533]
[1741206696004,0.033,145.94,145.91,312.0]
[1741206696715,0.033,145.94,145.92,0.67239028]
[1741206697701,0.033,145.94,145.92,223.24799028]
[1741206697913,0.033,145.94,145.92,222.5756]
[1741206698117,0.033,145.94,145.93,0.67209054]
[1741206698297,0.033,145.94,145.93,216.39509054]
[1741206698502,0.033,145.94,145.93,215.723]
[1741206703114,0.033,145.94,145.93,78.823]
[1741206704419,0.033,145.94,145.93,85.6756]
[1741206704619,0.033,145.94,145.93,78.823]
[1741206704790,0.033,145.94,145.93,86.34775006]
[1741206705701,0.033,145.94,145.93,223.24775006]
[1741206705903,0.033,145.94,145.93,222.5756]
[1741206707626,0.033,145.94,145.93,215.723]
[1741206707997,0.033,145.94,145.93,527.723]
[1741206708400,0.033,145.94,145.93,252.16372018]
[1741206708617,0.033,145.94,145.93,252.44804332]
[1741206710030,0.033,145.94,145.93,222.5756]
[1741206711631,0.033,145.94,145.93,534.5756]
[1741206712305,0.033,145.94,145.93,564.44804332]
[1741206712496,0.033,145.94,145.93,252.44804332]
[1741206712929,0.033,145.94,145.93,222.85992314]
[1741206714233,0.033,145.94,145.93,252.44804332]
[1741206715631,0.033,145.96,145.95,20.56864628]
[1741206715939,0.0001,145.96,145.95,57.06698092]
[1741206716108,0.0001,145.96,145.95,272.78998092]
[1741206716312,0.0001,145.96,145.95,272.11976646]
[1741206716541,0.0001,145.96,145.95,261.00394116]
[1741206716730,0.0001,145.96,145.95,307.15519002]
[1741206717328,0.0001,145.96,145.95,286.50519002]
[1741206719048,0.0001,145.96,145.95,598.50519002]
[1741206719335,0.0001,145.96,145.95,579.57121802]
[1741206721027,0.0001,145.96,145.95,579.85554116]
[1741206722336,0.0001,145.96,145.95,561.38324628]
[1741206722534,0.0001,145.96,145.95,579.85554116]
[1741206723052,0.0001,145.96,145.95,619.15519002]
[1741206723551,0.033,146.07,146.02,20.0]
[1741206723731,0.033,146.07,146.04,0.28432314]
[1741206724086,0.033,146.07,146.05,0.66849527]
[1741206724254,0.033,146.07,146.05,216.39139527]
[1741206724436,0.033,146.07,146.05,215.7229]
[1741206725049,0.033,146.07,146.05,222.5694]
[1741206725623,0.033,146.07,146.06,0.66860816]
[1741206726726,0.033,146.07,146.06,312.66860816]
[1741206726929,0.033,146.07,146.06,312.0]
[1741206727355,0.033,146.07,146.06,534.5694]
[1741206727568,0.033,146.07,146.06,534.85372314]
[1741206729161,0.033,146.07,146.06,528.00722314]
[1741206729468,0.033,146.07,146.06,534.85372314]
[1741206730443,0.033,146.07,146.06,527.7229]
[1741206730752,0.033,146.07,146.06,215.7229]
[1741206733946,0.033,146.07,146.06,78.8229]
[1741206737072,0.033,146.07,146.06,86.33854231]
[1741206737781,0.033,146.07,146.06,223.52286545]
[1741206737952,0.033,146.07,146.06,222.85372314]
[1741206740076,0.033,146.07,146.06,215.7229]
[1741206742373,0.033,146.07,146.06,78.8229]
[1741206742576,0.033,146.07,146.06,79.49171902]
[1741206743095,0.033,146.07,146.06,78.8229]
[1741206747588,0.033,146.07,146.06,86.3385885]
[1741206748266,0.033,146.07,146.06,223.2385885]
[1741206748590,0.033,146.07,146.06,222.85372314]
[1741206750300,1.2207,146.13,146.07,0.28432314]
[1741206750502,1.2207,146.13,146.08,0.66809226]
[1741206751306,20.23107826,146.16,146.08,216.39099226]
[1741206751474,20.23107826,146.16,146.08,215.7229]
[1741206751672,20.23107826,146.16,146.09,0.66771802]
[1741206752209,20.23107826,146.16,146.09,216.39061802]
[1741206752374,1.5814294,146.16,146.1,6.8446]
[1741206752574,1.5814294,146.16,146.11,0.66745196]
[1741206752795,1.5814294,146.16,146.11,216.39035196]
[1741206753074,1.5814294,146.16,146.11,215.7229]
[1741206754182,0.14216157,146.15,146.11,215.7229]
[1741206754592,1.5814294,146.16,146.11,215.7229]
[1741206755098,0.033,146.13,146.11,215.7229]
[1741206755296,0.033,146.13,146.11,78.8229]
[1741206758710,18.64964886,146.11,146.06,215.7229]
[1741206758902,18.64964886,146.11,146.02,221.8076]
[1741206759110,18.64964886,146.11,146.03,0.6694863]
[1741206759690,0.14216157,146.1,146.03,0.6694863]
[1741206760311,0.14216157,146.1,146.03,79.4923863]
[1741206760517,0.14216157,146.1,146.03,78.8229]
[1741206760715,18.79181043,146.08,146.03,78.8229]
[1741206760884,18.79181043,146.08,146.0,78.8529]
[1741206761787,18.64964886,146.08,146.01,0.67081777]
[1741206761987,18.64964886,146.08,146.0,215.7529]
[1741206762188,18.64964886,146.08,146.01,0.67023966]
[1741206762189,0.14216157,146.07,146.01,0.67023966]
[1741206762607,0.14216157,146.07,146.01,312.67023966]
[1741206762803,0.14216157,146.07,146.01,312.0]
[1741206763426,18.64964886,146.08,146.02,0.67022353]
[1741206764317,18.64964886,146.08,146.01,312.0]
[1741206765108,18.64964886,146.08,146.0,215.7529]
[1741206765406,18.64964886,146.08,146.01,0.67068665]
[1741206765982,18.64964886,146.08,146.02,6.8483]
[1741206766188,18.64964886,146.08,146.01,222.5715]
[1741206766509,1.548,146.09,146.02,0.28432314]
[1741206766702,1.548,146.09,146.03,0.66917075]
[1741206767013,1.548,146.09,146.03,216.39207075]
[1741206767208,18.79181043,146.08,146.03,215.7229]
[1741206768105,18.79181043,146.08,146.04,312.0]
[1741206768411,1.548,146.09,146.04,312.0]
[1741206768789,0.14216157,146.11,146.05,0.66907342]
[1741206768991,18.79181043,146.11,146.05,79.49197342]
[1741206769290,1.5054,146.12,146.05,216.39197342]
[1741206769491,1.5054,146.12,146.05,215.7229]
[1741206769715,1.5054,146.12,146.06,0.66855075]
[1741206770012,1.5054,146.12,146.06,216.39145075]
[1741206770222,1.5054,146.12,146.07,6.846]
[1741206770401,1.5054,146.12,146.07,7.51449346]
[1741206771299,1.5054,146.12,146.06,215.7229]
[1741206771813,1.5054,146.12,146.07,312.0]
[1741206772020,18.64964886,146.11,146.07,312.0]
[1741206772221,18.64964886,146.11,146.06,215.7229]
[1741206772504,18.64964886,146.11,146.06,222.5692]
[1741206772813,1.5054,146.12,146.06,222.5692]
[1741206773305,1.5054,146.12,146.07,7.51450293]
[1741206774893,0.033,146.13,146.07,223.23740293]
[1741206775212,0.033,146.13,146.07,534.5686]
[1741206776214,0.033,146.13,146.08,7.51341738]
[1741206776414,0.033,146.13,146.08,223.23631738]
[1741206776598,0.033,146.13,146.08,222.5681]
[1741206776798,0.033,146.13,146.08,215.7229]
[1741206778696,0.17516157,146.13,146.08,215.7229]
[1741206780809,0.17516157,146.13,146.08,78.8229]
[1741206782394,0.033,146.13,146.08,215.7229]
[1741206782804,0.033,146.13,146.08,78.8229]
[1741206785001,0.033,146.13,146.08,85.6683]
[1741206785318,0.033,146.13,146.09,0.6683367]
[1741206786422,0.033,146.13,146.09,7.5133367]
[1741206786820,0.033,146.13,146.09,0.6683367]
[1741206787716,0.033,146.13,146.09,7.5133367]
[1741206787920,0.033,146.13,146.1,0.28432314]
[1741206788227,0.033,146.13,146.12,20.28432314]
[1741206788426,0.033,146.13,146.12,241.32311802]
[1741206789504,0.033,146.13,146.12,222.85082314]
[1741206790220,0.033,146.13,146.12,216.00722314]
[1741206790598,0.033,146.13,146.12,215.7229]
[1741206791716,0.033,146.13,146.12,527.7229]
[1741206793126,0.033,146.13,146.12,215.7229]
[1741206795742,0.033,146.13,146.12,78.8229]
[1741206796117,0.033,146.13,146.12,390.8229]
[1741206796837,0.033,146.13,146.12,78.8229]
[1741206797346,1.6412,146.13,146.09,215.7229]
[1741206797544,1.6412,146.13,146.09,78.8229]
[1741206797719,18.79181043,146.12,146.09,78.8229]
[1741206798134,1.6412,146.13,146.09,78.8229]
[1741206798518,18.79181043,146.12,146.09,78.8229]
[1741206799717,25.00901043,146.12,146.09,78.8229]
[1741206800347,25.00901043,146.12,146.08,0.03]
[1741206800518,107.80601129,146.12,146.04,78.8229]
[1741206800830,18.64964886,146.1,146.0,215.7529]
[1741206801228,18.64964886,146.1,146.01,0.67023949]
[1741206801930,18.64964886,146.1,146.01,7.51863949]
[1741206802622,1.576,146.11,146.02,18.75661802]
[1741206802950,1.576,146.11,146.03,0.66905955]
[1741206803147,1.576,146.11,146.03,216.39195955]
[1741206803441,1.576,146.11,146.04,312.28432314]
[1741206803619,1.576,146.11,146.06,6.8465]
[1741206803821,1.576,146.11,146.07,0.6684484]
[1741206804838,1.576,146.11,146.06,215.7229]
[1741206805026,1.576,146.11,146.07,0.66873459]
[1741206805211,0.033,146.13,146.07,0.66873459]
[1741206806445,0.033,146.13,146.08,0.28432314]
[1741206806661,0.033,146.13,146.09,0.66773533]
[1741206806808,0.033,146.13,146.1,6.8446]
[1741206807013,0.033,146.13,146.11,0.6675662]
[1741206807843,0.033,146.13,146.11,216.3904662]
[1741206808034,0.033,146.13,146.12,0.28432314]
[1741206808214,0.033,146.13,146.12,216.00722314]
[1741206808938,0.033,146.13,146.12,229.07082314]
[1741206810039,0.033,146.13,146.12,258.57063742]
[1741206810444,0.033,146.13,146.12,229.07082314]
[1741206810830,0.033,146.13,146.12,541.07082314]
[1741206811442,0.033,146.13,146.12,570.57063742]
[1741206811640,0.033,146.13,146.12,541.07082314]
[1741206812244,0.033,146.13,146.12,561.72082314]
[1741206812449,0.033,146.13,146.12,570.57063742]
[1741206813153,0.033,146.13,146.12,570.85496056]
[1741206813958,0.033,146.13,146.12,570.57063742]
[1741206814132,0.033,146.13,146.12,541.07082314]
[1741206815146,0.033,146.13,146.12,78.8229]
[1741206815459,0.033,146.13,146.12,85.95082314]
[1741206815950,0.033,146.13,146.12,222.85082314]
[1741206816130,0.033,146.13,146.12,222.5665]
[1741206816452,0.033,146.13,146.12,222.85082314]
[1741206818151,0.033,146.13,146.12,534.85082314]
[1741206818649,0.033,146.13,146.12,222.85082314]
[1741206819840,0.033,146.13,146.12,215.7229]
[1741206820041,0.033,146.13,146.12,222.85082314]
[1741206820438,0.033,146.13,146.12,252.35063742]
[1741206820946,0.033,146.13,146.12,252.63496056]
[1741206821764,0.033,146.13,146.12,564.63496056]
[1741206822132,26.03350242,146.31,146.24,0.28432314]
[1741206822335,26.03350242,146.31,146.26,29.78413742]
[1741206822564,26.03350242,146.31,146.27,0.66340503]
[1741206822739,26.03350242,146.31,146.27,216.38630503]
[1741206822946,26.03350242,146.31,146.27,215.7229]
[1741206825362,26.03350242,146.31,146.27,527.7229]
[1741206825577,26.03350242,146.31,146.27,534.5595]
[1741206826251,26.03350242,146.31,146.28,0.94782313]
[1741206826438,26.03350242,146.31,146.28,216.67072313]
[1741206826641,10.71499387,146.31,146.28,215.7229]
[1741206827452,10.71499387,146.31,146.28,222.5589]
[1741206827841,10.71499387,146.31,146.28,78.8229]
[1741206828045,1.6108,146.3,146.28,78.8229]
[1741206828556,0.14216157,146.32,146.28,85.6588]
[1741206828764,1.6108,146.34,146.28,85.6588]
[1741206829081,1.6108,146.34,146.29,0.66331301]
[1741206829269,1.6108,146.34,146.3,6.8352]
[1741206829868,1.6108,146.34,146.3,85.6581]
[1741206830074,0.14216157,146.36,146.3,85.6581]
[1741206830374,0.14216157,146.36,146.31,0.6628527]
[1741206830566,0.14216157,146.36,146.31,79.4857527]
[1741206831375,18.64964886,146.37,146.32,6.8343]
[1741206831676,18.64964886,146.37,146.32,85.6572]
[1741206831853,1.75296157,146.38,146.32,85.6572]
[1741206832048,1.6108,146.38,146.32,85.6572]
[1741206832772,1.6108,146.38,146.32,86.31950733]
[1741206835282,18.64964886,146.37,146.32,78.8229]
[1741206835883,0.14216157,146.36,146.3,78.8229]
[1741206836254,18.79181043,146.34,146.24,229.1053]
[1741206836563,18.79181043,146.34,146.25,0.6641376]
[1741206837191,18.79181043,146.34,146.25,7.5013376]
[1741206838559,18.79181043,146.34,146.24,215.7229]
[1741206839083,18.79181043,146.34,146.24,527.7229]
[1741206839463,18.64964886,146.32,146.24,78.8229]
[1741206839995,18.34964886,146.3,146.22,111.1]
[1741206840195,18.34964886,146.3,146.22,189.9229]
[1741206840701,81.0,146.29,146.22,189.9229]
[1741206841773,18.64964886,146.28,146.22,189.9229]
[1741206842266,81.0,146.29,146.22,196.7617]
[1741206842461,81.0,146.29,146.22,189.9229]
[1741206843972,18.79181043,146.31,146.22,326.8229]
[1741206845975,18.79181043,146.31,146.22,333.6616]
[1741206848365,18.79181043,146.31,146.23,0.66481163]
[1741206848567,18.79181043,146.31,146.22,333.6616]
[1741206848871,18.79181043,146.31,146.23,0.66472823]
[1741206849202,18.79181043,146.31,146.23,215.7229]
[1741206849398,18.79181043,146.31,146.23,222.5611]
[1741206849572,81.0,146.32,146.23,222.5611]
[1741206849770,81.0,146.32,146.23,251.99178238]
[1741206850099,81.0,146.32,146.23,222.5611]
[1741206850276,81.0,146.32,146.24,0.66426652]
[1741206850468,18.64964886,146.31,146.23,215.7229]
[1741206850865,18.68264886,146.31,146.23,215.7229]
[1741206852392,18.68264886,146.31,146.23,78.8229]
[1741206852393,99.68264886,146.31,146.23,78.8229]
[1741206852691,101.47719002,146.31,146.23,78.8229]
[1741206852897,99.68264886,146.31,146.23,78.8229]
[1741206853202,0.033,146.31,146.23,86.32598515]
[1741206853897,0.17516157,146.31,146.23,86.32598515]
[1741206854077,0.17516157,146.31,146.23,78.8229]
[1741206854278,0.033,146.31,146.23,78.8229]
[1741206854581,18.79181043,146.29,146.23,78.8229]
[1741206855371,18.64964886,146.29,146.23,85.6612]
[1741206855913,0.033,146.31,146.23,222.5612]
[1741206857484,0.033,146.31,146.23,215.7229]
[1741206857805,0.033,146.31,146.23,222.5614]
[1741206858412,0.033,146.31,146.23,215.7229]
[1741206858801,18.64964886,146.3,146.23,78.8229]
[1741206860880,99.64964886,146.3,146.2,215.7229]
[1741206861104,18.64964886,146.28,146.2,78.8229]
[1741206862617,0.14216157,146.27,146.2,78.8229]
[1741206862922,0.14216157,146.25,146.2,78.8229]
[1741206863124,0.14216157,146.23,146.17,86.7546]
[1741206863698,0.14216157,146.23,146.19,0.03]
[1741206863985,18.64964886,146.24,146.19,0.03]
[1741206868991,1.597,146.27,146.19,85.6932]
[1741206869485,18.64964886,146.26,146.19,78.8529]
[1741206870912,18.64964886,146.26,146.19,85.6931]
[1741206871329,18.64964886,146.26,146.19,78.8529]
[1741206871933,18.64964886,146.26,146.19,85.6932]
[1741206872815,81.0,146.29,146.2,0.6654239]
[1741206873017,18.79181043,146.28,146.2,216.3883239]
[1741206873329,18.79181043,146.28,146.2,215.7229]
[1741206876632,18.64964886,146.26,146.2,215.7229]
[1741206876819,0.033,146.3,146.23,18.4218865]
[1741206877017,0.033,146.3,146.25,18.4218865]
[1741206877238,0.033,146.3,146.26,0.66368853]
[1741206877537,0.033,146.3,146.26,215.7229]
[1741206877847,0.033,146.3,146.27,0.66421518]
[1741206878335,0.033,146.3,146.27,312.66421518]
[1741206878536,0.033,146.3,146.27,312.0]
[1741206878925,0.033,146.3,146.28,0.66359184]
[1741206879242,0.033,146.3,146.28,79.48649184]
[1741206879413,0.033,146.3,146.28,223.22239184]
[1741206879619,0.033,146.3,146.28,215.7229]
[1741206880312,0.033,146.3,146.28,222.559]
[1741206880514,0.033,146.3,146.28,215.7229]
[1741206883345,0.033,146.3,146.28,78.8229]
[1741206884921,0.033,146.3,146.25,78.8229]
[1741206885945,0.033,146.3,146.25,85.6604]
[1741206886121,0.033,146.3,146.25,86.32460583]
[1741206886721,0.033,146.3,146.25,115.76003017]
[1741206886944,0.033,146.3,146.25,86.32460583]
[1741206887944,0.033,146.3,146.25,79.48710583]
[1741206888941,0.033,146.3,146.25,86.32470583]
[1741206890151,0.033,146.3,146.25,78.8229]
[1741206891331,0.033,146.3,146.25,78.8529]
[1741206893155,18.64964886,146.29,146.25,0.03]
[1741206896849,0.14216157,146.28,146.25,0.03]
[1741206897357,99.64964886,146.29,146.25,0.03]
[1741206898825,0.033,146.3,146.25,0.03]
[1741206899026,0.033,146.3,146.25,78.8529]
[1741206899259,0.033,146.3,146.25,108.95237564]
[1741206899453,0.033,146.3,146.25,79.5169513]
[1741206900343,0.033,146.3,146.26,29.43542434]
[1741206900533,0.033,146.3,146.27,0.66378817]
[1741206900855,0.033,146.3,146.26,312.0]
[1741206901045,0.033,146.3,146.26,318.8371]
[1741206901244,0.033,146.3,146.26,312.0]
[1741206901856,0.033,146.3,146.26,318.837]
[1741206902053,0.033,146.3,146.26,534.5599]
[1741206902254,0.033,146.3,146.27,36.35949629]
[1741206902441,0.033,146.3,146.27,42.73299629]
[1741206902639,0.033,146.3,146.29,38.39520657]
[1741206902950,16.76719387,146.41,146.3,25.77242314]
[1741206903163,16.76719387,146.41,146.31,0.66248067]
[1741206903342,18.79181043,146.4,146.3,224.1229]
[1741206903678,18.79181043,146.4,146.3,217.2877]
[1741206903844,18.79181043,146.4,146.3,215.7229]
[1741206904961,18.64964886,146.4,146.3,222.558]
[1741206905465,18.64964886,146.38,146.3,78.8229]
[1741206908078,18.64964886,146.38,146.3,85.658]
[1741206908751,0.14216157,146.37,146.3,85.658]
[1741206909158,0.14216157,146.37,146.3,86.32120393]
[1741206909374,18.64964886,146.38,146.3,86.32120393]
[1741206909778,18.64964886,146.38,146.3,79.48610393]
[1741206909982,0.14216157,146.37,146.3,78.8229]
[1741206910183,18.64964886,146.36,146.28,78.8229]
[1741206910394,18.64964886,146.36,146.28,85.6589]
[1741206910563,0.14216157,146.35,146.28,85.6589]
[1741206911080,0.14216157,146.35,146.28,78.8229]
[1741206912077,18.64964886,146.34,146.27,6.3735]
[1741206912282,18.64964886,146.32,146.25,0.03]
[1741206912458,99.64964886,146.32,146.25,0.03]
[1741206912781,20.21354886,146.3,146.25,0.03]
[1741206913580,82.5639,146.34,146.25,78.8529]
[1741206913784,18.64964886,146.33,146.25,78.8529]
[1741206914191,18.64964886,146.31,146.25,0.03]
[1741206914484,101.44449583,146.31,146.25,0.03]
[1741206915381,99.64964886,146.31,146.25,0.03]
[1741206915989,0.14216157,146.3,146.25,0.03]
[1741206916665,0.14216157,146.32,146.25,78.8529]
[1741206916867,18.64964886,146.32,146.25,78.8529]
[1741206917263,0.17516157,146.31,146.25,78.8529]
[1741206917669,0.033,146.31,146.26,0.66469878]
[1741206917866,0.033,146.31,146.27,18.39520657]
[1741206918288,0.033,146.31,146.26,234.11810657]
[1741206918583,0.033,146.31,146.27,18.39520657]
[1741206918782,0.033,146.31,146.28,19.05850576]
[1741206918964,0.033,146.31,146.28,216.38619919]
[1741206919165,0.033,146.31,146.28,215.7229]
[1741206919788,0.033,146.31,146.29,7.49894509]
[1741206920281,0.033,146.31,146.29,6.8357]
[1741206920863,0.033,146.31,146.29,318.8357]
[1741206922186,0.033,146.31,146.29,6.8357]
[1741206923298,0.033,146.31,146.28,222.5589]
[1741206923495,0.033,146.31,146.28,85.6589]
[1741206923872,0.033,146.31,146.28,78.8229]
[1741206924206,0.033,146.31,146.28,85.659]
[1741206924567,0.033,146.31,146.28,102.7495]
[1741206924766,0.033,146.31,146.28,269.74725615]
[1741206924967,0.033,146.31,146.29,29.43447542]
[1741206925164,0.033,146.31,146.29,341.43447542]
[1741206925467,0.033,146.31,146.3,0.66306958]
[1741206925663,0.033,146.31,146.3,7.49826958]
[1741206926896,0.033,146.31,146.3,6.8352]
[1741206928995,0.033,146.31,146.29,318.8355]
[1741206929202,0.033,146.31,146.29,6.8355]
[1741206929581,0.033,146.31,146.29,85.6584]
[1741206929781,0.033,146.31,146.29,78.8229]
[1741206930498,0.033,146.31,146.29,85.6585]
[1741206930994,0.033,146.31,146.29,78.8229]
[1741206931376,0.033,146.31,146.29,85.6585]
[1741206935401,0.033,146.31,146.29,78.8229]
[1741206936196,18.64964886,146.3,146.25,78.8529]
[1741206937299,18.64964886,146.3,146.25,85.6903]
[1741206937680,18.64964886,146.3,146.25,78.8529]
[1741206938085,18.64964886,146.3,146.25,0.03]
[1741206938291,18.64964886,146.28,146.25,0.03]
[1741206939513,0.14216157,146.27,146.25,0.03]
[1741206940788,0.14216157,146.28,146.25,0.03]
[1741206941286,81.0,146.29,146.25,0.03]
[1741206942587,0.033,146.31,146.25,234.16845504]
[1741206942794,0.033,146.31,146.27,18.41555504]
[1741206943524,0.033,146.31,146.28,6.8362]
[1741206943817,0.033,146.31,146.28,121.8288519]
[1741206944289,0.033,146.31,146.28,433.8288519]
[1741206944491,0.033,146.31,146.29,18.41555504]
[1741206944718,0.033,146.31,146.28,416.07465504]
[1741206944917,0.033,146.31,146.28,104.07465504]
[1741206945096,0.033,146.31,146.28,104.73826275]
[1741206945610,0.033,146.31,146.29,18.41555504]
[1741206945811,0.033,146.31,146.3,0.66294365]
[1741206946903,0.033,146.31,146.3,7.49814365]
[1741206947822,0.033,146.31,146.3,319.49814365]
[1741206947993,0.033,146.31,146.3,318.8352]
[1741206949917,0.033,146.31,146.3,534.5581]
[1741206952501,0.033,146.31,146.3,390.8229]
[1741206952800,0.033,146.31,146.3,78.8229]
[1741206953399,0.033,146.31,146.3,85.6581]
[1741206954028,0.033,146.31,146.3,78.8229]
[1741206954203,0.033,146.31,146.3,85.6581]
[1741206954521,0.033,146.31,146.3,78.8229]
[1741206956423,0.033,146.31,146.28,78.8529]
[1741206957423,0.033,146.31,146.28,0.03]
[1741206959832,0.17516157,146.31,146.28,0.03]
[1741206960209,0.033,146.31,146.28,0.03]
[1741206960520,0.033,146.31,146.28,78.8529]
[1741206960729,0.033,146.31,146.28,397.6889]
[1741206960927,0.033,146.31,146.28,390.8529]
[1741206961233,0.17516157,146.31,146.28,78.8529]
[1741206961532,0.17516157,146.31,146.28,0.03]
[1741206963312,0.14216157,146.29,146.28,0.03]
[1741206964034,0.033,146.31,146.28,0.03]
[1741206966944,0.17516157,146.31,146.28,0.03]
[1741206967839,0.033,146.31,146.28,0.03]
[1741206968260,0.033,146.31,146.28,78.8529]
[1741206968424,0.033,146.31,146.29,18.41555504]
[1741206968627,0.033,146.31,146.28,78.8529]
[1741206969125,0.033,146.31,146.28,85.6888]
[1741206969756,0.033,146.31,146.28,78.8529]
[1741206969959,0.033,146.31,146.28,104.76834179]
[1741206970161,0.033,146.31,146.29,18.41555504]
[1741206970461,0.033,146.31,146.3,19.0786065]
[1741206971034,0.033,146.31,146.3,390.8229]
[1741206971236,0.033,146.31,146.3,397.6581]